bitfinex-derivatives/quotes_SOLF0:USTF0_20241216
["timestamp","ask_amount","ask_price","bid_price","bid_amount"]
[1734389175463,9.79610468,218.64,218.62,6.36925151]
[1734389175663,2.2863,218.64,218.62,6.36925151]
[1734389176463,2.2863,218.63,218.62,6.36925151]
[1734389178765,2.2863,218.63,218.6,6.36925151]
[1734389180363,2.2863,218.63,218.6,8.42925151]
[1734389180767,2.2863,218.63,218.6,13.87456954]
[1734389183072,2.2863,218.63,218.6,16.16116954]
[1734389195675,9.79610468,218.63,218.6,16.16116954]
[1734389195874,2.2863,218.63,218.6,16.16116954]
[1734389197577,9.80476186,218.63,218.6,16.16116954]
[1734389197775,2.2863,218.63,218.6,16.16116954]
[1734389199381,2.2863,218.64,218.61,2.2865]
[1734389202183,2.2861,218.66,218.62,2.2864]
[1734389202876,2.2861,218.66,218.62,8.65565151]
[1734389203274,7.51846186,218.66,218.62,6.36925151]
[1734389203479,2.286,218.67,218.64,6.36925151]
[1734389204572,9.80446186,218.67,218.64,6.36925151]
[1734389204777,7.51846186,218.66,218.64,6.36925151]
[1734389207185,2.286,218.67,218.64,6.36925151]
[1734389210576,2.286,218.67,218.64,8.65545151]
[1734389210979,9.80446186,218.67,218.64,8.65545151]
[1734389211177,7.51846186,218.66,218.64,8.65545151]
[1734389211579,2.286,218.67,218.64,8.65545151]
[1734389215592,2.286,218.67,218.64,6.36925151]
[1734389216794,9.80446186,218.67,218.64,6.36925151]
[1734389216990,7.51846186,218.66,218.64,6.36925151]
[1734389217189,2.286,218.67,218.64,6.36925151]
[1734389221302,7.51846186,218.71,218.63,4.3463]
[1734389221501,26.1785963,218.72,218.63,4.3463]
[1734389221800,17.74934479,218.71,218.63,2.2863]
[1734389222001,7.51846186,218.7,218.63,2.2863]
[1734389222796,2.286,218.67,218.63,2.2863]
[1734389224204,2.2861,218.66,218.62,10.71565151]
[1734389224806,7.51846186,218.71,218.62,10.71565151]
[1734389225105,2.2861,218.65,218.62,8.65565151]
[1734389230013,2.2861,218.65,218.63,2.2863]
[1734389235209,7.49668471,218.71,218.63,2.2863]
[1734389235210,2.286,218.66,218.63,2.2863]
[1734389238708,2.286,218.66,218.63,8.65555151]
[1734389239017,2.286,218.66,218.63,2.2863]
[1734389239219,2.286,218.66,218.63,8.65555151]
[1734389242314,2.286,218.66,218.63,2.2863]
[1734389249124,2.286,218.66,218.63,8.65555151]
[1734389249316,2.286,218.66,218.63,2.2863]
[1734389249516,2.286,218.66,218.63,8.65555151]
[1734389249921,2.286,218.66,218.63,2.2863]
[1734389250120,2.286,218.66,218.63,8.65555151]
[1734389250524,2.2866,218.61,218.58,2.2868]
[1734389250721,2.2866,218.61,218.59,6.36925151]
[1734389251125,2.2866,218.61,218.58,2.2868]
[1734389251319,2.2866,218.61,218.6,6.36925151]
[1734389251725,2.2866,218.61,218.58,2.2868]
[1734389252029,2.2866,218.61,218.59,6.36925151]
[1734389258927,2.2866,218.61,218.59,8.65605151]
[1734389260027,2.2866,218.61,218.59,2.2868]
[1734389260225,2.2866,218.61,218.59,8.65605151]
[1734389261829,2.2866,218.61,218.59,8.65595151]
[1734389262027,2.2867,218.6,218.59,6.36925151]
[1734389262630,2.2868,218.59,218.57,2.06]
[1734389262836,2.2868,218.59,218.58,6.36925151]
[1734389264936,2.2869,218.58,218.53,5.42525645]
[1734389265135,2.2869,218.58,218.57,6.36925151]
[1734389268141,7.48418839,218.63,218.52,2.06]
[1734389268142,6.36925151,218.62,218.52,2.2875]
[1734389268335,2.06,218.61,218.53,6.36925151]
[1734389269139,2.2872,218.55,218.53,6.36925151]
[1734389269340,2.2872,218.55,218.52,2.2875]
[1734389269643,2.2872,218.55,218.53,6.36925151]
[1734389275048,2.2872,218.55,218.52,2.2875]
[1734389275441,2.2872,218.55,218.5,5.44811553]
[1734389275442,2.2872,218.55,218.53,6.36925151]
[1734389275639,9.51861491,218.61,218.5,5.44811553]
[1734389275842,9.51861491,218.61,218.53,6.36925151]
[1734389276244,7.45861491,218.6,218.53,6.36925151]
[1734389276448,2.2873,218.55,218.53,6.36925151]
[1734389278248,2.2873,218.54,218.53,6.36925151]
[1734389280952,2.2875,218.52,218.5,6.36925151]
[1734389284451,2.06,218.57,218.5,6.36925151]
[1734389284452,2.2876,218.51,218.5,6.36925151]
[1734389287154,8.42925151,218.57,218.44,2.06]
[1734389287349,8.42925151,218.57,218.48,6.36925151]
[1734389289255,2.2878,218.5,218.48,6.36925151]
[1734389291457,8.42925151,218.57,218.48,6.36925151]
[1734389291659,2.2878,218.49,218.48,6.36925151]
[1734389291852,2.2878,218.49,218.46,2.2881]
[1734389292053,2.2878,218.49,218.48,6.36925151]
[1734389295754,2.2878,218.49,218.46,2.2881]
[1734389296058,2.2878,218.49,218.48,6.36925151]
[1734389306662,2.2878,218.49,218.46,8.65735151]
[1734389309765,2.2878,218.49,218.48,6.36925151]
[1734389312861,2.2878,218.49,218.46,8.65735151]
[1734389323276,2.2878,218.49,218.46,2.2881]
[1734389323575,2.2878,218.49,218.46,8.65735151]
[1734389326378,2.2878,218.49,218.46,2.2881]
[1734389340893,2.2876,218.51,218.46,2.2881]
[1734389341094,2.06,218.53,218.46,2.2881]
[1734389342300,2.2879,218.49,218.46,2.2881]
[1734389345596,2.2879,218.49,218.43,6.36925151]
[1734389345802,6.36925151,218.52,218.4,2.06]
[1734389346001,6.36925151,218.52,218.41,6.36925151]
[1734389346203,6.36925151,218.5,218.41,6.36925151]
[1734389346399,2.06,218.49,218.41,6.36925151]
[1734389346802,2.2882,218.46,218.43,2.2884]
[1734389349303,2.06,218.49,218.41,11.92431054]
[1734389349502,2.2883,218.45,218.42,2.2885]
[1734389358212,2.06,218.49,218.39,3.1772]
[1734389358408,2.06,218.49,218.41,6.36925151]
[1734389359615,2.2885,218.43,218.41,6.36925151]
[1734389360012,2.2879,218.48,218.44,2.2883]
[1734389360218,6.36925151,218.54,218.46,6.36925151]
[1734389360416,6.36925151,218.52,218.44,6.36925151]
[1734389360917,2.2878,218.5,218.45,2.2881]
[1734389362113,2.2878,218.49,218.45,2.2881]
[1734389363116,6.36925151,218.52,218.43,6.36925151]
[1734389363418,2.2877,218.5,218.46,2.2881]
[1734389367013,6.36925151,218.52,218.46,2.2881]
[1734389367222,2.2878,218.49,218.46,2.2881]
[1734389367914,2.2878,218.49,218.43,6.36925151]
[1734389368120,2.2878,218.49,218.45,2.2882]
[1734389370424,2.2879,218.48,218.45,2.2882]
[1734389371112,2.2879,218.48,218.44,2.2883]
[1734389374125,2.2879,218.48,218.45,5.50890423]
[1734389375323,6.36925151,218.52,218.45,5.50890423]
[1734389375623,2.2881,218.47,218.45,5.50890423]
[1734389385430,2.2881,218.47,218.43,8.65765151]
[1734389385630,2.2881,218.46,218.43,8.65765151]
[1734389388728,2.2881,218.46,218.45,5.53417948]
[1734389414445,7.49338267,218.51,218.39,3.1772]
[1734389414650,2.2884,218.44,218.42,6.36925151]
[1734389415342,2.2884,218.44,218.4,4.3487]
[1734389415547,2.2884,218.44,218.41,8.65795151]
[1734389415962,2.2884,218.44,218.43,5.43087439]
[1734389418856,6.36925151,218.5,218.4,6.36925151]
[1734389418857,2.2886,218.42,218.4,6.36925151]
[1734389420454,2.2886,218.42,218.41,5.57759537]
[1734389424460,7.49338267,218.47,218.39,6.36925151]
[1734389424461,2.2887,218.41,218.39,6.36925151]
[1734389425664,2.2889,218.4,218.36,2.2892]
[1734389425859,2.2889,218.4,218.37,6.36925151]
[1734389426568,2.2889,218.4,218.39,6.36925151]
[1734389431063,2.2887,218.41,218.39,6.36925151]
[1734389432065,2.2887,218.41,218.38,6.36925151]
[1734389433566,2.2887,218.41,218.38,8.65815151]
[1734389434975,2.2887,218.41,218.38,2.2889]
[1734389435276,2.2887,218.41,218.38,8.65815151]
[1734389439670,2.2887,218.41,218.38,2.2889]
[1734389439871,2.2887,218.41,218.38,8.65815151]
[1734389441673,2.2888,218.4,218.38,6.36925151]
[1734389443076,2.2889,218.39,218.38,6.36925151]
[1734389444377,7.49574218,218.44,218.36,6.36925151]
[1734389444573,2.2891,218.38,218.36,6.36925151]
[1734389446377,2.2891,218.37,218.36,6.36925151]
[1734389448987,2.2891,218.37,218.35,2.2893]
[1734389457186,2.2891,218.37,218.34,6.36925151]
[1734389457386,2.2891,218.37,218.34,8.65865151]
[1734389462795,2.06,218.4,218.29,3.5776]
[1734389462995,2.2892,218.36,218.33,8.65875151]
[1734389466597,8.42925151,218.4,218.29,1.5176]
[1734389466798,2.2893,218.35,218.32,2.2896]
[1734389468191,2.2894,218.34,218.31,6.36925151]
[1734389468391,2.2894,218.34,218.31,8.65895151]
[1734389469500,2.2894,218.34,218.32,2.2896]
[1734389470690,2.2894,218.34,218.29,7.11644334]
[1734389470691,6.36925151,218.39,218.3,8.65895151]
[1734389470997,2.06,218.4,218.3,8.65895151]
[1734389470998,6.36925151,218.37,218.3,8.65895151]
[1734389471202,2.06,218.36,218.3,8.65895151]
[1734389471404,2.2894,218.35,218.3,8.65895151]
[1734389471597,2.06,218.36,218.3,8.65895151]
[1734389472396,2.06,218.36,218.3,2.2897]
[1734389473403,2.2896,218.33,218.3,2.2897]
[1734389475398,2.2896,218.32,218.3,2.2897]
[1734389479902,4.3496,218.32,218.29,2.2899]
[1734389486910,2.06,218.32,218.27,5.39642814]
[1734389487111,2.2897,218.31,218.28,2.2899]
[1734389487314,2.06,218.32,218.27,5.39642814]
[1734389488409,4.3496,218.32,218.29,2.2899]
[1734389490015,2.2896,218.32,218.29,2.2899]
[1734389496115,2.2897,218.31,218.29,2.2899]
[1734389498714,2.2897,218.31,218.28,2.29]
[1734389506024,2.2897,218.31,218.27,2.2901]
[1734389506723,2.06,218.33,218.27,2.2901]
[1734389506724,2.2899,218.3,218.27,2.2901]
[1734389506927,2.06,218.33,218.25,2.2903]
[1734389507126,2.06,218.33,218.25,8.65955151]
[1734389508323,6.36925151,218.32,218.22,5.37413206]
[1734389508529,6.36925151,218.32,218.24,8.65965151]
[1734389509419,2.2902,218.27,218.24,8.65965151]
[1734389511831,2.2902,218.27,218.24,8.59774036]
[1734389514337,2.2902,218.27,218.24,2.22848885]
[1734389514838,2.2902,218.27,218.23,8.65965151]
[1734389515235,2.2902,218.27,218.23,2.2904]
[1734389515435,2.2902,218.27,218.23,8.65965151]
[1734389516939,2.2902,218.26,218.23,8.65965151]
[1734389520138,2.2902,218.26,218.23,2.2904]
[1734389520437,2.2901,218.27,218.24,2.2904]
[1734389521240,6.36925151,218.28,218.2,0.25127]
[1734389521445,6.36925151,218.26,218.2,0.25127]
[1734389521631,2.06,218.25,218.2,0.25127]
[1734389522342,2.2906,218.23,218.2,0.25127]
[1734389522837,2.2908,218.21,218.2,0.25127]
[1734389523038,4.3508,218.21,218.2,0.25127]
[1734389527237,4.3508,218.21,218.18,2.291]
[1734389530844,2.06,218.21,218.15,11.759353]
[1734389531043,4.3508,218.21,218.18,2.2911]
[1734389532044,2.06,218.21,218.18,2.2911]
[1734389538448,2.06,218.21,218.19,2.291]
[1734389548852,2.2907,218.22,218.19,2.291]
[1734389549055,2.06,218.2,218.19,2.291]
[1734389550658,2.2907,218.22,218.19,2.291]
[1734389550957,2.06,218.21,218.19,2.291]
[1734389556858,2.2911,218.18,218.15,2.2913]
[1734389557055,8.42925151,218.17,218.15,2.2913]
[1734389557360,2.2915,218.14,218.1,2.61712]
[1734389557562,2.06,218.13,218.1,2.61712]
[1734389558459,2.06,218.13,218.1,0.32532]
[1734389559256,2.2917,218.12,218.1,0.32532]
[1734389559760,2.06,218.13,218.1,0.32532]
[1734389559963,6.36925151,218.11,217.95,2.06]
[1734389560164,6.36925151,218.11,218.02,6.36925151]
[1734389560457,2.2919,218.1,218.03,2.2926]
[1734389560657,2.06,218.09,218.03,2.2926]
[1734389560857,2.06,218.08,218.03,2.2926]
[1734389561056,2.2923,218.06,217.95,4.6095]
[1734389561459,2.2923,218.06,217.99,6.36925151]
[1734389561661,2.2923,218.06,217.95,4.6095]
[1734389561864,2.2923,218.06,218.0,6.36925151]
[1734389562064,8.66155151,218.06,217.95,3.0713]
[1734389562367,8.66155151,218.06,217.99,6.36925151]
[1734389563064,8.66155151,218.06,217.95,3.0713]
[1734389563460,8.66155151,218.06,217.99,6.36925151]
[1734389563664,2.2926,218.04,217.99,2.293]
[1734389563865,2.06,218.03,217.98,6.36925151]
[1734389564264,2.06,218.02,217.98,8.66245151]
[1734389564769,2.06,218.02,217.97,2.2932]
[1734389565170,2.06,218.02,217.97,8.66245151]
[1734389565363,8.66195151,218.03,217.97,6.36925151]
[1734389565670,8.66195151,218.03,217.98,2.2932]
[1734389565868,4.3528,218.02,217.95,9.44055151]
[1734389566068,2.06,218.02,217.95,3.0713]
[1734389567363,2.2931,218.0,217.95,3.0713]
[1734389567567,2.2931,218.0,217.95,9.44055151]
[1734389567764,2.06,217.99,217.98,2.2932]
[1734389568071,2.06,218.02,217.97,6.36925151]
[1734389568466,2.06,218.02,217.98,2.2932]
[1734389569070,2.06,218.02,217.99,2.2931]
[1734389572866,2.2927,218.03,217.99,2.2931]
[1734389573064,2.06,218.02,217.99,2.2931]
[1734389575568,2.06,218.02,217.95,3.0713]
[1734389575769,2.06,218.02,217.97,2.2932]
[1734389577576,2.06,218.02,217.95,3.0713]
[1734389579175,2.06,218.02,217.86,2.5317]
[1734389579176,6.36925151,218.01,217.86,2.5317]
[1734389579373,6.36925151,218.01,217.92,6.36925151]
[1734389579775,2.2933,217.98,217.92,5.57949793]
[1734389579971,2.06,217.97,217.92,11.94874944]
[1734389580367,2.2933,217.98,217.92,11.94874944]
[1734389580572,2.06,217.97,217.92,11.94874944]
[1734389581578,2.06,217.97,217.94,2.2936]
[1734389581778,6.36925151,218.0,217.87,3.5159]
[1734389581978,2.06,217.99,217.87,3.5159]
[1734389582174,2.06,217.99,217.92,6.36925151]
[1734389583378,2.2933,217.98,217.94,2.2935]
[1734389583877,6.36925151,218.04,217.92,6.36925151]
[1734389584075,6.36925151,218.02,217.92,6.36925151]
[1734389584274,2.06,218.01,217.93,1.4823]
[1734389585572,2.2929,218.01,217.97,2.2933]
[1734389585778,2.06,218.0,217.97,2.2933]
[1734389593080,4.353,218.0,217.97,2.2933]
[1734389595175,2.06,218.0,217.97,2.2933]
[1734389596175,2.06,218.0,217.97,2.2932]
[1734389596477,2.06,218.0,217.93,3.0471]
[1734389596682,4.353,218.0,217.96,2.2933]
[1734389598382,4.353,218.0,217.93,3.0471]
[1734389599285,4.353,218.0,217.96,2.2933]
[1734389600189,4.353,218.0,217.97,2.2932]
[1734389601588,4.353,218.0,217.93,3.0471]
[1734389601791,4.353,218.0,217.96,2.2934]
[1734389603385,2.2931,217.99,217.95,2.2935]
[1734389606582,2.06,218.0,217.95,2.2935]
[1734389606781,2.2932,217.98,217.95,2.2935]
[1734389608683,2.2932,217.98,217.94,2.2936]
[1734389610286,2.2932,217.98,217.91,5.41176072]
[1734389610287,2.2935,217.95,217.88,6.53091151]
[1734389610690,2.2935,217.95,217.88,0.16166]
[1734389610891,2.2935,217.95,217.89,6.36925151]
[1734389611492,2.2935,217.95,217.91,2.2938]
[1734389615892,2.2937,217.94,217.89,5.37560759]
[1734389616491,2.2937,217.94,217.9,2.294]
[1734389617891,2.2937,217.94,217.91,2.2939]
[1734389618896,2.06,217.96,217.91,2.2939]
[1734389619093,2.2935,217.95,217.91,2.2939]
[1734389621393,6.36925151,217.93,217.82,6.36925151]
[1734389621696,6.36925151,217.9,217.82,6.36925151]
[1734389621893,2.04,217.89,217.82,6.36925151]
[1734389622297,2.04,217.89,217.86,5.40719278]
[1734389622492,2.04,217.89,217.87,2.2943]
[1734389623191,2.04,217.89,217.8,1.7811]
[1734389623192,6.36925151,217.88,217.8,1.7811]
[1734389623397,8.66345151,217.88,217.84,2.2946]
[1734389625399,8.66345151,217.88,217.82,2.2948]
[1734389625400,2.2944,217.87,217.82,2.2948]
[1734389625595,6.36925151,217.86,217.8,0.2093]
[1734389625799,2.04,217.85,217.8,0.2093]
[1734389626300,2.2946,217.84,217.8,2.5043]
[1734389627696,2.2946,217.84,217.8,0.2093]
[1734389628896,2.04,217.85,217.82,2.2948]
[1734389632098,2.04,217.87,217.84,2.2946]
[1734389632294,8.40925151,217.88,217.8,0.2093]
[1734389632694,2.2941,217.89,217.8,0.2093]
[1734389632898,1.5831,217.96,217.81,6.36925151]
[1734389633093,6.36925151,217.91,217.83,6.36925151]
[1734389633302,6.36925151,217.91,217.89,2.2941]
[1734389633600,2.2938,217.92,217.89,2.2941]
[1734389633901,6.36925151,217.9,217.89,2.2941]
[1734389635202,6.36925151,217.9,217.88,2.2942]
[1734389637397,6.36925151,217.9,217.87,2.2943]
[1734389638998,6.36925151,217.9,217.84,1.5036]
[1734389639600,6.36925151,217.9,217.87,2.2942]
[1734389639802,2.2938,217.92,217.84,1.5036]
[1734389640003,6.36925151,217.9,217.84,1.5036]
[1734389640403,6.36925151,217.9,217.85,2.2945]
[1734389640602,6.36925151,217.9,217.84,1.5036]
[1734389641006,6.36925151,217.9,217.87,2.2942]
[1734389644916,6.36925151,217.9,217.84,1.5036]
[1734389645110,6.36925151,217.9,217.85,2.2944]
[1734389645111,8.66325151,217.9,217.85,2.2944]
[1734389645617,2.2941,217.89,217.85,2.2944]
[1734389645809,4.3341,217.89,217.85,2.2944]
[1734389647411,8.66335151,217.9,217.86,2.2944]
[1734389647612,10.70335151,217.9,217.86,2.2944]
[1734389649619,2.2942,217.89,217.85,2.2945]
[1734389649812,8.40925151,217.9,217.82,1.6137]
[1734389651423,8.66355151,217.88,217.84,2.2946]
[1734389652322,2.2945,217.86,217.81,2.295]
[1734389653222,6.36925151,217.88,217.81,2.295]
[1734389653523,6.36925151,217.88,217.8,2.2951]
[1734389653822,2.04,217.9,217.8,2.2951]
[1734389653823,6.36925151,217.86,217.8,2.2951]
[1734389654021,2.04,217.85,217.77,5.77978663]
[1734389654214,2.04,217.85,217.77,12.14903814]
[1734389654620,2.2948,217.83,217.77,5.77978663]
[1734389654919,2.2948,217.83,217.79,2.2952]
[1734389658814,2.04,217.85,217.77,5.77978663]
[1734389659013,2.04,217.85,217.8,2.295]
[1734389659014,2.2947,217.84,217.8,2.295]
[1734389659825,10.70385151,217.85,217.81,2.2949]
[1734389664122,2.2947,217.84,217.81,2.2949]
[1734389664918,8.40925151,217.85,217.81,2.2949]
[1734389665121,2.2948,217.83,217.81,2.2949]
[1734389666129,2.2949,217.82,217.79,2.2951]
[1734389668027,2.2949,217.82,217.77,5.77978663]
[1734389668028,2.295,217.81,217.77,8.07508663]
[1734389668926,2.295,217.81,217.77,2.53396]
[1734389669825,2.2951,217.8,217.77,0.23866]
[1734389670324,4.5866,217.97,217.77,0.23866]
[1734389670325,2.04,217.81,217.77,0.23866]
[1734389670524,2.2952,217.79,217.77,0.23866]
[1734389670824,8.40925151,217.81,217.77,0.23866]
[1734389671219,2.2953,217.78,217.77,0.23866]
[1734389674529,2.2953,217.78,217.74,2.2956]
[1734389675927,2.04,217.78,217.75,2.2955]
[1734389676334,6.36925151,217.77,217.73,1.4662]
[1734389677424,8.66455151,217.77,217.73,3.7619]
[1734389677624,2.2953,217.77,217.73,3.7619]
[1734389677827,6.36925151,217.76,217.73,3.7619]
[1734389678022,2.2953,217.77,217.73,3.7619]
[1734389678427,2.04,217.78,217.73,3.7619]
[1734389678428,10.70445151,217.78,217.73,3.7619]
[1734389678933,2.04,217.78,217.74,2.2955]
[1734389679333,2.04,217.78,217.73,1.4662]
[1734389679528,2.04,217.78,217.75,2.2953]
[1734389679731,2.2949,217.81,217.73,1.4662]
[1734389679931,6.36925151,217.8,217.73,1.4662]
[1734389680333,6.36925151,217.8,217.76,2.2952]
[1734389681330,6.36925151,217.8,217.73,7.83545151]
[1734389681532,6.36925151,217.8,217.78,2.295]
[1734389684833,6.36925151,217.8,217.77,2.2952]
[1734389686337,6.36925151,217.8,217.76,2.2953]
[1734389687339,8.66425151,217.8,217.75,2.2954]
[1734389687534,6.36925151,217.8,217.75,2.2954]
[1734389688437,2.295,217.79,217.75,2.2954]
[1734389688739,6.36925151,217.8,217.74,2.2955]
[1734389688935,6.36925151,217.8,217.73,1.4662]
[1734389690641,2.2953,217.77,217.73,1.4662]
[1734389690940,6.36925151,217.8,217.73,1.4662]
[1734389691538,6.36925151,217.78,217.73,1.4662]
[1734389691848,2.06,217.77,217.73,1.4662]
[1734389692438,2.06,217.77,217.68,0.31573]
[1734389692640,6.36925151,217.76,217.69,6.36925151]
[1734389693041,2.2956,217.74,217.7,2.2959]
[1734389697047,2.2956,217.73,217.69,7.73007635]
[1734389698041,2.2956,217.73,217.68,6.68498151]
[1734389698042,2.2957,217.72,217.68,6.68498151]
[1734389698240,6.36925151,217.75,217.68,8.98108151]
[1734389698644,6.36925151,217.75,217.68,6.68498151]
[1734389698842,2.2958,217.71,217.68,6.68498151]
[1734389699349,2.296,217.7,217.68,0.31573]
[1734389702544,2.2958,217.71,217.68,0.31573]
[1734389702850,3.0609,217.81,217.68,0.31573]
[1734389703052,6.36925151,217.74,217.68,0.31573]
[1734389703255,6.36925151,217.74,217.7,2.2958]
[1734389703954,2.296,217.7,217.68,0.31573]
[1734389708256,4.3559,217.71,217.68,0.31573]
[1734389708857,4.3559,217.71,217.66,2.2963]
[1734389710262,4.3559,217.71,217.67,2.2962]
[1734389713862,2.06,217.71,217.65,11.98152776]
[1734389714060,2.06,217.71,217.68,2.2961]
[1734389715267,6.36925151,217.69,217.59,0.37822]
[1734389715468,6.36925151,217.66,217.61,2.2968]
[1734389715667,2.1,217.65,217.61,2.2968]
[1734389716272,2.2967,217.63,217.59,2.67532]
[1734389717165,2.2967,217.63,217.59,0.37822]
[1734389719376,6.36925151,217.64,217.59,0.37822]
[1734389719377,2.2968,217.62,217.59,0.37822]
[1734389720267,2.1,217.61,217.59,0.37822]
[1734389720675,4.3969,217.61,217.59,0.37822]
[1734389720968,6.36925151,217.6,217.59,0.37822]
[1734389721166,8.66625151,217.6,217.59,0.37822]
[1734389723771,2.297,217.6,217.59,0.37822]
[1734389728276,2.2972,217.59,217.54,2.2976]
[1734389728578,2.2972,217.59,217.55,2.2975]
[1734389731277,8.66645151,217.59,217.55,2.2975]
[1734389732579,8.66645151,217.59,217.51,11.96506276]
[1734389732580,8.66645151,217.59,217.54,2.2976]
[1734389734385,2.2972,217.58,217.54,2.2976]
[1734389734682,2.1,217.57,217.54,2.2976]
[1734389740172,2.1,217.57,217.51,5.59581125]
[1734389740482,10.76665151,217.57,217.52,2.2978]
[1734389742277,2.2974,217.56,217.52,2.2978]
[1734389743079,10.76655151,217.57,217.52,2.2978]
[1734389743385,2.18,217.56,217.52,2.2978]
[1734389748982,2.2972,217.59,217.55,2.2975]
[1734389749193,2.18,217.58,217.55,2.2975]
[1734389750790,4.4772,217.58,217.55,2.2975]
[1734389754585,10.84645151,217.58,217.55,2.2975]
[1734389757893,2.2973,217.57,217.55,2.2975]
[1734389758893,2.2973,217.57,217.51,5.59581125]
[1734389759193,2.2973,217.57,217.54,2.2976]
[1734389760204,6.36925151,217.56,217.51,5.59581125]
[1734389761492,2.2976,217.55,217.51,7.89361125]
[1734389762197,2.2976,217.55,217.51,5.59581125]
[1734389762997,6.36925151,217.56,217.51,5.59581125]
[1734389763206,2.2976,217.54,217.51,5.59581125]
[1734389763894,6.36925151,217.56,217.51,5.59581125]
[1734389764200,2.2976,217.55,217.51,5.59581125]
[1734389765201,2.2978,217.52,217.48,2.2982]
[1734389767602,2.2978,217.52,217.48,7.93694386]
[1734389773198,2.298,217.51,217.48,5.63874386]
[1734389773396,2.18,217.53,217.48,5.63874386]
[1734389774406,4.4778,217.53,217.48,7.93704386]
[1734389775706,4.4778,217.53,217.48,2.2983]
[1734389775906,8.66715151,217.52,217.47,2.2983]
[1734389780101,2.2979,217.52,217.47,2.2983]
[1734389780300,8.66715151,217.52,217.47,2.2983]
[1734389781512,2.2982,217.49,217.44,3.8923]
[1734389781709,2.2982,217.49,217.44,2.2987]
[1734389782209,2.2987,217.45,217.39,7.78476937]
[1734389782414,8.54925151,217.44,217.31,3.7846]
[1734389782602,2.18,217.43,217.36,6.36925151]
[1734389783104,2.18,217.43,217.38,2.2992]
[1734389783309,2.18,217.44,217.39,6.36925151]
[1734389783504,1.6619,217.57,217.39,6.36925151]
[1734389783505,6.36925151,217.47,217.39,6.36925151]
[1734389783706,6.36925151,217.49,217.41,6.36925151]
[1734389783909,6.36925151,217.49,217.45,2.2985]
[1734389784805,1.6619,217.57,217.43,6.36925151]
[1734389785008,6.36925151,217.51,217.47,2.2983]
[1734389785306,8.54925151,217.51,217.47,2.2983]
[1734389785507,2.18,217.51,217.47,2.2983]
[1734389785711,8.54925151,217.51,217.47,2.2983]
[1734389786411,8.54925151,217.51,217.46,2.2985]
[1734389788412,10.84725151,217.51,217.46,2.2985]
[1734389793813,2.2981,217.5,217.46,2.2985]
[1734389797313,2.2979,217.52,217.44,6.36925151]
[1734389797516,2.2979,217.52,217.45,1.5862]
[1734389797921,2.2979,217.52,217.47,2.2983]
[1734389799528,6.36925151,217.51,217.4,1.6046]
[1734389799829,2.18,217.55,217.43,6.36925151]
[1734389800129,6.36925151,217.53,217.44,3.7288]
[1734389800327,6.36925151,217.53,217.45,6.36925151]
[1734389800629,6.36925151,217.53,217.49,2.2981]
[1734389801629,6.36925151,217.53,217.5,2.298]
[1734389804531,8.66675151,217.55,217.5,2.298]
[1734389804729,2.2975,217.55,217.5,2.298]
[1734389804930,8.66675151,217.55,217.5,2.298]
[1734389806834,1.5969,217.63,217.49,6.36925151]
[1734389807138,8.66645151,217.58,217.53,2.2977]
[1734389808042,6.36925151,217.58,217.54,2.2975]
[1734389808637,8.66645151,217.58,217.54,2.2975]
[1734389809033,1.6155,217.65,217.55,2.2975]
[1734389809237,6.36925151,217.58,217.55,2.2975]
[1734389810540,2.2971,217.59,217.55,2.2975]
[1734389810741,6.36925151,217.58,217.55,2.2975]
[1734389811738,2.2971,217.59,217.55,2.2975]
[1734389812139,6.36925151,217.59,217.55,2.2975]
[1734389812340,2.12,217.62,217.51,7.92855151]
[1734389812341,6.36925151,217.61,217.58,2.2972]
[1734389813736,6.36925151,217.59,217.54,1.5127]
[1734389814438,8.66635151,217.59,217.55,2.2975]